Cogmind - Beta 9.4 @@@ ROGUE MODE // 2020.01.16 @ 19:33:02 // Winter2019/RPGLIKE Player: Hermelin Result: Destroyed by G-50 Soldier with Heavy Laser Performance ------------- Evolutions (5) 2500 Regions Visited (9) 1800 Robots Destroyed (101) 505 Value Destroyed (3743) 3743 Prototype IDs (20) 400 Alien Tech Used (0) 0 Bonus (1576) 1576 TOTAL SCORE: 10524 Bonus ------- High Alert Combat Kills 408 Follower Combat Kills 618 Entered Garrisons 200 Used RIF Installer 500 Friendly Fire -150 Cogmind --------- Core Integrity 0/750 Matter 295/300 Energy 270/270 System Corruption 0% Temperature Cool (9) Movement Flying (30) Location -5/Factory Parts ------- > --- POWER (2) -------- Light Nuclear Core Light Fission Core > --- PROPULSION (3) --- Improved VTOL Module Improved VTOL Module Xenon Bombardment Thruster > --- UTILITY (10) ----- Advanced Signal Interpreter Hacking Suite Hacking Suite Improved Hacking Suite System Shield System Shield System Shield System Shield Relay Coupler [Swarmer] (65) System Backup Module > --- WEAPON (4) ------- Remote Datajack Plasma Sword Plasma Sword Spear > --- INVENTORY (4) ---- Hacking Suite Relay Coupler [Swarmer] (74) Tesla Rifle Heavy Missile Launcher Peak State ------------ > --- POWER ------------ Light Nuclear Core Light Fission Core > --- PROPULSION ------- Improved VTOL Module Improved VTOL Module Xenon Bombardment Thruster > --- UTILITY ---------- Advanced Signal Interpreter Hacking Suite Improved Hacking Suite System Shield System Shield System Shield System Shield Relay Coupler [Swarmer] Relay Coupler [Swarmer] System Backup Module > --- WEAPON ----------- Remote Datajack Plasma Sword Plasma Sword Spear > --- INVENTORY -------- Hacking Suite Relay Coupler [Swarmer] Tesla Rifle Heavy Missile Launcher [Rating: 76] Favorites ----------- Power Light Nuclear Core Engine Ion Engine Power Core Light Nuclear Core Propulsion Improved VTOL Module Treads Light Treads Flight Unit Improved VTOL Module Utility System Shield Device Improved Terrain Scanner Processor Advanced Signal Interpreter Hackware System Shield Weapon Spear Energy Gun Precision Beam Rifle Ballistic Gun Light Assault Rifle Ballistic Cannon Light Cannon Launcher Heavy Missile Launcher Special Weapon Remote Datajack Slashing Weapon Scythe Piercing Weapon Spear Special Melee Weapon Improved Datajack Build | -11 -10 -10 -10 -9 -8 -7 -7 -6 -5 ------- Run | Scr Mat Min Exi Min Mat Fac Gar Fac Fac Slots Evolved 15 | 1 2 . . 1 5 1 1 3 1 Power 1 | . . . . . 1 . . . . Propulsion 2 | . 1 . . . 1 . . . . Utility 9 | 1 1 . . 1 2 1 1 2 . Weapon 3 | . . . . . 1 . . 1 1 Parts Attached 85 | 5 12 1 . 1 12 21 16 9 8 Power 11 | 1 2 . . . 1 3 2 . 2 Engine 2 | 1 1 . . . . . . . . Core 9 | . 1 . . . 1 3 2 . 2 Reactor . | . . . . . . . . . . Propulsion 15 | 1 5 . . . 1 6 1 1 . Treads 1 | 1 . . . . . . . . . Leg . | . . . . . . . . . . Wheel . | . . . . . . . . . . Hover . | . . . . . . . . . . Flight 14 | . 5 . . . 1 6 1 1 . Utility 28 | 2 3 1 . 1 6 9 1 3 2 Device 14 | 2 1 1 . 1 3 5 . 1 . Storage . | . . . . . . . . . . Processor 4 | . 2 . . . 1 1 . . . Hackware 10 | . . . . . 2 3 1 2 2 Protection . | . . . . . . . . . . Artifact . | . . . . . . . . . . Weapon 31 | 1 2 . . . 4 3 12 5 4 Energy Gun 6 | 1 . . . . 2 1 . . 2 Energy Cannon . | . . . . . . . . . . Ballistic Gun 3 | . 1 . . . 1 . . 1 . Ballistic Cannon 2 | . 1 . . . 1 . . . . Launcher 5 | . . . . . . . 4 1 . Special Weapon 1 | . . . . . . . . 1 . Impact Weapon . | . . . . . . . . . . Slashing Weapon 4 | . . . . . . 1 1 . 2 Piercing Weapon 3 | . . . . . . 1 1 1 . Special Melee Weapon 7 | . . . . . . . 6 1 . Unidentified Prototypes 4 | . . . . . 3 . . . 1 Parts Lost 2 | . . . . . . . . 1 1 Power 1 | . . . . . . . . 1 . Propulsion . | . . . . . . . . . . Utility 1 | . . . . . . . . . 1 Weapon . | . . . . . . . . . . Highest Loss Streak 1 | . . . . . . . . 1 1 Average Slot Usage (%) 97 | . 97 100 100 92 96 94 99 99 95 Engine 1 | . 13 . . . . . . . . Core 11 | . 3 14 14 12 11 14 13 12 6 Flight 20 | . 18 28 28 25 19 17 20 18 15 Device 18 | . 28 23 28 30 28 15 6 8 9 Processor 9 | . 11 18 14 12 9 7 6 5 5 Hackware 18 | . . . . . 7 24 38 38 39 Energy Gun 3 | . 11 . . . 12 3 . . 3 Ballistic Cannon 4 | . 1 14 14 12 5 . . . . Slashing Weapon 1 | . . . . . . 6 . . 2 Piercing Weapon 2 | . . . . . . 3 6 5 5 Naked Turns . | . . . . . . . . . . Heaviest Build 27 | 9 9 10 10 11 19 19 21 27 24 Greatest Support 29 | 13 18 18 18 18 26 28 28 29 29 Greatest Overweight (x) . | . . . . . . . . . . Average Overweight (x) . | . . . . . . . . . . Largest Inventory Capacity 4 | 2 2 2 2 2 3 4 4 4 4 Average Capacity 3 | 2 2 2 2 2 2 3 4 4 4 Most Carried 4 | 2 2 2 2 2 3 4 4 4 4 Average Carried 3 | 1 1 2 2 2 2 3 3 3 3 Final Capacity 4 | 2 2 2 2 2 3 4 4 4 4 Final Carried 4 | 2 2 2 2 2 3 4 4 4 4 Class Distribution -------------------- 43% | Hacker-Scout 41% | Scavenger-Scout 8% | Wizard-Scout 4% | Mutant Dominant Class ---------------- Scavenger-Scout | -10/Materials Scavenger-Scout | -10/Mines Scavenger-Scout | -10/Exiles Scavenger-Scout | -9/Mines Scavenger-Scout | -8/Materials Hacker-Scout | -7/Factory Hacker-Scout | -7/Garrison Hacker-Scout | -6/Factory Wizard-Scout | -5/Factory Resources | -11 -10 -10 -10 -9 -8 -7 -7 -6 -5 ----------- Run | Scr Mat Min Exi Min Mat Fac Gar Fac Fac Matter Collected 1408 | 250 123 46 . 36 255 200 296 117 85 Remotely 20 | 10 10 . . . . . . . . Salvage Created 3933 | 94 625 . . . 765 1170 663 354 262 Parts 215 | 7 44 2 . 4 50 46 32 19 11 Haulers Intercepted 8 | . 2 . . . 2 3 . 1 . Recyclers Shooed 3 | . . . . . . 2 . 1 . Parts Field Recycled . | . . . . . . . . . . Retrieved Matter . | . . . . . . . . . . Parts Self-Destructed . | . . . . . . . . . . Prevented . | . . . . . . . . . . Kills | -11 -10 -10 -10 -9 -8 -7 -7 -6 -5 ------- Run | Scr Mat Min Exi Min Mat Fac Gar Fac Fac Combat Hostiles Destroyed 69 | . 15 1 . 3 14 12 19 2 3 Melee 30 | . . . . . . 10 17 2 1 Guns 28 | . 13 . . . 12 2 . . 1 Cannons 6 | . . 1 . 3 2 . . . . AOE 3 | . 2 . . . . . 1 . . Classes Destroyed 13 | 2 6 . . . 3 1 1 . . Worker 2 | . 1 . . . 1 . . . . Tunneler 1 | 1 . . . . . . . . . Hauler 8 | . 2 . . . 2 3 . 1 . Recycler 8 | 1 . . . . 1 5 . 1 . Operator 5 | . 3 . . . 1 . . 1 . Watcher 7 | . 2 . . . 2 2 . 1 . Swarmer 18 | . 6 . . . 3 4 5 . . Grunt 34 | . 9 1 . 3 7 4 8 2 . Brawler 3 | . . . . . 1 . 2 . . Duelist 2 | . . . . . . . 2 . . Sentry 6 | . . . . . 2 3 1 . . Hunter 6 | . . . . . 1 . 1 1 3 Programmer 1 | . . . . . . 1 . . . Best Kill Streak 7 | 2 6 1 . 3 4 7 5 2 2 Combat Bots Only 5 | . 5 1 . 3 4 4 5 2 2 Max Kills in Single Turn 2 | 1 1 1 . 1 1 1 1 2 1 Gunslinging . | . . . . . . . . . . Exploded 1 | . 1 . . . . . 1 . . Melee 1 | . . . . . . 1 1 1 1 Uniques/NPCs Destroyed . | . . . . . . . . . . Combat | -11 -10 -10 -10 -9 -8 -7 -7 -6 -5 -------- Run | Scr Mat Min Exi Min Mat Fac Gar Fac Fac Damage Taken 4232 | . 667 . . 25 590 735 1018 847 350 Core 3460 | . 556 . . 19 488 595 820 716 266 Absorbed by Shields 12 | . . . . . . . 12 . . Redirected to Core 2554 | . 357 . . 19 350 457 665 483 223 Core Remaining (%) 73 | 100 . . . 100 89 . 44 34 . Volleys Fired 219 | 4 86 4 . 10 65 24 9 4 13 Largest 2 | 1 1 1 . 1 2 1 1 1 1 Hottest 111 | 40 40 35 . 35 111 80 39 39 65 Shots Fired 244 | 4 86 4 . 10 90 24 9 4 13 Gun 191 | 4 86 . . . 65 24 . 2 10 Cannon 39 | . . 4 . 10 25 . . . . Launcher 10 | . . . . . . . 9 1 . Special 4 | . . . . . . . . 1 3 Kinetic 66 | . 23 4 . 10 27 . . 2 . Thermal 64 | . . . . . 40 24 . . . Explosive 10 | . . . . . . . 9 1 . Electromagnetic 100 | 4 63 . . . 23 . . . 10 Robot Hit Streak 13 | 2 8 1 . 5 11 13 3 6 4 Robot Miss Streak 10 | 1 10 1 . 1 5 3 2 1 1 Penetration Max . | . . . . . . . . . . Secondary Targets 2 | . . . . . 2 . . . . Max Gunslinging Chain 1 | . . . . . 1 . . . . Shots Hit Robots 262 | 2 50 2 . 8 61 57 54 17 11 Core Hits 154 | 2 35 2 . 4 37 29 32 9 4 Critical Hits 7 | . . . . . 3 3 1 . . Critical Kills 5 | . . . . . 2 2 1 . . Critical Parts Destroyed 2 | . . . . . 1 1 . . . Melee Attacks 157 | . . . . . . 52 71 28 6 Impact . | . . . . . . . . . . Slashing 34 | . . . . . . 31 1 . 2 Piercing 113 | . . . . . . 21 63 25 4 Sneak Attacks 12 | . . . . . . 5 3 4 . Combat Hostiles 6 | . . . . . . . 3 3 . Follow-up Attacks 2 | . . . . . . 1 1 . . Damage Inflicted 6681 | 83 759 30 . 128 1369 1854 1476 721 261 Guns 2455 | 42 634 . . . 1094 460 . 15 210 Cannons 407 | . . 30 . 128 249 . . . . Explosions 595 | 41 125 . . . 26 . 192 211 . Melee 3224 | . . . . . . 1394 1284 495 51 Ramming . | . . . . . . . . . . Kinetic 595 | . 139 30 . 128 283 . . 15 . Thermal 1233 | 41 125 . . . 607 460 . . . Explosive 403 | . . . . . . . 192 211 . Electromagnetic 1226 | 42 495 . . . 479 . . . 210 Impact . | . . . . . . . . . . Slashing 1054 | . . . . . . 974 29 . 51 Piercing 2170 | . . . . . . 420 1255 495 . Highest Corruption 2 | . . . . . . 2 . 1 . Average Corruption 1 | . . . . . . 1 . 1 . Corruption Purged 3 | . . . . . . 2 . 1 . Effects 4 | . . . . . . 4 . . . Message Errors 1 | . . . . . . 1 . . . Heat Flow Errors 1 | . . . . . . 1 . . . Energy Discharges 1 | . . . . . . 1 . . . Data Loss (minor) 1 | . . . . . . 1 . . . Overload Shots . | . . . . . . . . . . Overflow Damage 286 | . . . . . 33 180 61 12 . Projectiles 33 | . . . . . 33 . . . . Explosions 27 | . . . . . . . 19 8 . Melee 226 | . . . . . . 180 42 4 . Knockbacks 1 | . . . . . 1 . . . . Impact . | . . . . . . . . . . Kinetic 1 | . . . . . 1 . . . . Secondary . | . . . . . . . . . . Self-Inflicted Damage 70 | . . . . . . . 70 . . Shots 2 | . . . . . . . 2 . . Rammed . | . . . . . . . . . . Targets Rammed . | . . . . . . . . . . Kicked . | . . . . . . . . . . Crushed . | . . . . . . . . . . Highest Temperature 388 | . 74 10 . . 317 388 64 19 168 Average Temperature 58 | . 17 6 . . 95 135 20 8 65 Received Heat Transfer 1164 | . 210 . . 15 324 192 204 210 9 Effects 1 | . . . . . . 1 . . . Shutdowns 1 | . . . . . . 1 . . . Siege Activations . | . . . . . . . . . . Robots Corrupted 1 | . . . . . . . . . 1 Combat Hostiles 1 | . . . . . . . . . 1 Parts Fried 9 | . 6 . . . 1 . . . 2 Impact Corruptions . | . . . . . . . . . . Robots Melted . | . . . . . . . . . . Combat Hostiles . | . . . . . . . . . . Parts Melted 3 | . . . . . 3 . . . . Heat Transferred 2452 | 50 50 . . . 1308 1044 . . . Parts Sabotaged . | . . . . . . . . . . Parts Stolen . | . . . . . . . . . . Parts Stripped . | . . . . . . . . . . Power Chain Reactions 4 | 1 2 . . . 1 . . . . Missiles Intercepted . | . . . . . . . . . . Alert | -11 -10 -10 -10 -9 -8 -7 -7 -6 -5 ------- Run | Scr Mat Min Exi Min Mat Fac Gar Fac Fac Peak Influence 875 | 10 352 120 . 70 516 687 875 771 372 Average Influence 348 | 7 195 110 . 60 253 396 589 578 144 Maximum Alert Level 3 | . 1 . . . 2 2 3 3 1 Low Security (%) 27 | 100 37 100 . 100 42 . . . 67 Level 1 34 | . 62 . . . 32 60 28 . 32 Level 2 29 | . . . . . 24 38 33 73 . Level 3 8 | . . . . . . . 38 26 . Level 4 . | . . . . . . . . . . Level 5 . | . . . . . . . . . . High Security . | . . . . . . . . . . Max Security . | . . . . . . . . . . Squads Dispatched 21 | . 3 1 . . 3 4 . 8 2 Investigation 7 | . . 1 . . 2 2 . 1 1 Extermination 4 | . . . . . . 1 . 2 1 Reinforcement 8 | . 3 . . . 1 1 . 3 . Assault 2 | . . . . . . . . 2 . Garrison . | . . . . . . . . . . Intercept . | . . . . . . . . . . Construction Impeded 2 | . . . . . 1 . . 1 . Haulers Reinforced 1 | . . . . . . . . 1 . Stealth | -11 -10 -10 -10 -9 -8 -7 -7 -6 -5 --------- Run | Scr Mat Min Exi Min Mat Fac Gar Fac Fac Distress Signals 2 | . 1 . . . . 1 . . . Communications Jammed . | . . . . . . . . . . Distress Signals . | . . . . . . . . . . Times Spotted 155 | . 27 2 . 3 28 24 36 24 11 Peak Tracking Total 12 | . 7 1 . 3 6 4 10 12 6 Tactical Retreats 12 | . . . . . 1 2 6 3 . Traps | -11 -10 -10 -10 -9 -8 -7 -7 -6 -5 ------- Run | Scr Mat Min Exi Min Mat Fac Gar Fac Fac Traps Triggered 15 | . . . . . 1 3 9 1 1 Indirectly . | . . . . . . . . . . Trap Hack Attempts 14 | . . . . . . . 14 . . Triggered . | . . . . . . . . . . Disarmed 10 | . 6 . . . . 4 . . . Reprogrammed 12 | . . . . . . 10 2 . . Reused 3 | . . . . . . 1 2 . . Traps Extracted . | . . . . . . . . . . Installed . | . . . . . . . . . . Triggered 3 | . . . . . . 1 2 . . Machines | -11 -10 -10 -10 -9 -8 -7 -7 -6 -5 ---------- Run | Scr Mat Min Exi Min Mat Fac Gar Fac Fac Machines Disabled 14 | . 1 . . . 3 . 4 6 . Max in Single Turn 2 | . 1 . . . 2 . 2 . . Garrison Relay 2 | . . . . . . . 2 . . Phase Generator 1 | . . . . . . . 1 . . Machines Sabotaged . | . . . . . . . . . . Garrisons Compromised . | . . . . . . . . . . Overloaded Fab Kills . | . . . . . . . . . . Fab Network Shutdowns 1 | . . . . . . 1 . . . Hacking | -11 -10 -10 -10 -9 -8 -7 -7 -6 -5 --------- Run | Scr Mat Min Exi Min Mat Fac Gar Fac Fac Machines Accessed 50 | . 6 1 4 . 7 24 . 5 3 Terminals 26 | . 5 . . . 4 12 . 2 3 Fabricators 4 | . . . . . . 3 . 1 . Repair Stations 4 | . 1 . . . . 3 . . . Recycling Units 4 | . . . . . 1 2 . 1 . Scanalyzers 5 | . . . . . 2 2 . 1 . Garrison Access 2 | . . . . . . 2 . . . Total Hacks 238 | . 27 1 4 . 33 119 . 24 30 Successful 152 | . 19 1 4 . 24 76 . 11 17 Failed 85 | . 8 . . . 9 42 . 13 13 Catastrophic 6 | . . . . . 1 4 . 1 . Database Lockouts 4 | . . . . . . 4 . . . Manual 82 | . 10 . . . 21 33 . 8 10 Terminals 170 | . 22 . . . 21 88 . 9 30 Fabricators 12 | . . . . . . 8 . 4 . Repair Stations 11 | . 5 . . . . 6 . . . Recycling Units 14 | . . . . . 4 5 . 5 . Scanalyzers 21 | . . . . . 8 7 . 6 . Garrison Access 5 | . . . . . . 5 . . . Terminal Hacks 86 | . 12 1 4 . 8 44 . 2 15 Record 14 | . . . 4 . . 1 . 2 7 Part Schematic 9 | . . . . . 3 6 . . . Robot Schematic 3 | . . . . . . 2 . . 1 Robot Analysis 3 | . 1 . . . . 2 . . . Prototype ID Bank 9 | . 1 . . . . 6 . . 2 Open Door 1 | . . 1 . . . . . . . Branch Access Points 3 | . 1 . . . 1 1 . . . Emergency Access Points 2 | . 1 . . . . 1 . . . Machine Index 1 | . . . . . . 1 . . . Terminal Index 2 | . 1 . . . . . . . 1 Alert Level 2 | . 1 . . . . 1 . . . Unreport Threat 10 | . 1 . . . 2 4 . . 3 Locate Traps 7 | . 2 . . . . 5 . . . Disarm Traps 2 | . 1 . . . . 1 . . . Reprogram Traps 3 | . . . . . . 3 . . . Dispatch Records 1 | . . . . . 1 . . . . Patrol Status 1 | . . . . . . 1 . . . Investigation Status 1 | . . . . . . 1 . . . Recall Investigation 1 | . . . . . . 1 . . . Hauler Manifests 1 | . 1 . . . . . . . . Registered Components 3 | . . . . . . 2 . . 1 Registered Prototypes 3 | . . . . . . 3 . . . Zone Layout 4 | . 1 . . . 1 2 . . . Fabricator Hacks 11 | . . . . . . 7 . 4 . Network Status 1 | . . . . . . 1 . . . Load Schematic 3 | . . . . . . 2 . 1 . Build 7 | . . . . . . 4 . 3 . Repair Station Hacks 10 | . 4 . . . . 6 . . . Scan Component 5 | . 2 . . . . 3 . . . Repair 5 | . 2 . . . . 3 . . . Recycling Unit Hacks 4 | . . . . . 2 2 . . . Report Inventory 2 | . . . . . 1 1 . . . Retrieve Components 2 | . . . . . 1 1 . . . Scanalyzer 14 | . . . . . 8 3 . 3 . Insert Component 6 | . . . . . 3 2 . 1 . Analyze 8 | . . . . . 5 1 . 2 . Garrison Access Hacks 3 | . . . . . . 3 . . . Unlock Access 1 | . . . . . . 1 . . . Coupler Status 2 | . . . . . . 2 . . . Unauthorized Hacks 58 | . 8 . . . 12 27 . 7 4 Terminals 17 | . 3 . . . 4 8 . . 2 Track 1 | . . . . . . 1 . . . Assimilate 1 | . . . . . . . . . 1 Botnet 13 | . 2 . . . 4 6 . . 1 Operators 2 | . 1 . . . . 1 . . . Fabricators 1 | . . . . . . 1 . . . Siphon 1 | . . . . . . 1 . . . Repair Stations . | . . . . . . . . . . Recycling Units 5 | . . . . . 2 1 . 2 . Monitor 2 | . . . . . 1 . . 1 . Mask 3 | . . . . . 1 1 . 1 . Scanalyzers . | . . . . . . . . . . Garrison Access 1 | . . . . . . 1 . . . Watchers 1 | . . . . . . 1 . . . Data Cores Recovered . | . . . . . . . . . . Used . | . . . . . . . . . . Hacking Detections 32 | . 6 . . . 6 15 . 2 3 Full Trace Events 3 | . 1 . . . . . . 1 1 Feedback Events . | . . . . . . . . . . Feedback Blocked . | . . . . . . . . . . Robot Schematics Acquired 3 | . . . . . . 2 . . 1 Robots Built 4 | . . . . . . . . 4 . Matter 504 | . . . . . . . . 504 . Time 268 | . . . . . . . . 268 . Total Robot Build Rating 16 | . . . . . . . . 16 . Part Schematics Acquired 14 | . . . . . 6 7 . 1 . Parts Built 3 | . . . . . . 3 . . . Matter 438 | . . . . . . 438 . . . Time 219 | . . . . . . 219 . . . Total Part Build Rating 9 | . . . . . . 9 . . . Parts Repaired 5 | . 2 . . . . 3 . . . Time 200 | . 52 . . . . 148 . . . Parts Recycled . | . . . . . . . . . . Recycled Matter . | . . . . . . . . . . Retrieved Matter . | . . . . . . . . . . Retrieved Components 4 | . . . . . 3 1 . . . Parts Scanalyzed 6 | . . . . . 3 2 . 1 . Part Schematics Acquired 5 | . . . . . 3 1 . 1 . Parts Damaged . | . . . . . . . . . . Bothacking | -11 -10 -10 -10 -9 -8 -7 -7 -6 -5 ------------ Run | Scr Mat Min Exi Min Mat Fac Gar Fac Fac Used RIF Installer 1 | . . . . . . . 1 . . Robots Hacked 7 | . . . . . . . 3 1 3 Non-combat 3 | . . . . . . . . 1 2 Combat 4 | . . . . . . . 3 . 1 Robot Hacks Applied 7 | . . . . . . . 3 1 3 find_fabricator 1 | . . . . . . . . . 1 ignore_parts 1 | . . . . . . . . . 1 check_alert 1 | . . . . . . . . 1 . overwrite_iff 3 | . . . . . . . 3 . . formatsys_high 1 | . . . . . . . . . 1 Relay Couplers Released 3 | . . . . . . . 3 . . Machine Destruction 3 | . . . . . . . 3 . . Attached 2 | . . . . . . . 1 . 1 Robots Rewired . | . . . . . . . . . . Allies Hacked 1 | . . . . . . . . 1 . Hacks Repelled . | . . . . . . . . . . Allies | -11 -10 -10 -10 -9 -8 -7 -7 -6 -5 -------- Run | Scr Mat Min Exi Min Mat Fac Gar Fac Fac Total Allies 16 | . . 1 . 5 . . 3 5 2 Largest Group 5 | . . 1 1 5 5 2 3 4 1 Highest-Rated Group 152 | . . 31 31 79 79 32 36 152 12 Highest-Rated Ally 38 | . . 31 31 31 31 16 12 38 12 Total Orders 10 | . . . . . . . . 10 . STAY 1 | . . . . . . . . 1 . GOTO 4 | . . . . . . . . 4 . FOLLOW 1 | . . . . . . . . 1 . AID 4 | . . . . . . . . 4 . Ally Attacks 153 | . . . . . 88 3 4 58 . Total Damage 2711 | . . . . . 1055 30 28 1598 . Kills 19 | . . . . . 12 . . 7 . Allies Corrupted . | . . . . . . . . . . Allies Melted . | . . . . . . . . . . Intel | -11 -10 -10 -10 -9 -8 -7 -7 -6 -5 ------- Run | Scr Mat Min Exi Min Mat Fac Gar Fac Fac Robot Analysis Total 3 | . 1 . . . . 2 . . . Derelict Logs Recovered 3 | . . . . 3 . . . . . Drone Launches . | . . . . . . . . . . Drone Recoveries . | . . . . . . . . . . Exploration | -11 -10 -10 -10 -9 -8 -7 -7 -6 -5 ------------- Run | Scr Mat Min Exi Min Mat Fac Gar Fac Fac Turns Passed 5914 | 97 638 231 814 375 530 1501 632 794 302 Spaces Moved 8138 | 57 692 360 607 577 654 2770 839 1055 527 Core 166 | 57 109 . . . . . . . . Treads . | . . . . . . . . . . Legs . | . . . . . . . . . . Wheels . | . . . . . . . . . . Hover . | . . . . . . . . . . Flight 7972 | . 583 360 607 577 654 2770 839 1055 527 Fastest Speed 30 | 50 37 37 37 37 34 30 30 30 30 Average Speed 33 | 50 41 37 37 37 36 31 30 30 30 Slowest Speed 50 | 50 50 37 37 37 37 34 30 30 35 Overloaded Moves . | . . . . . . . . . . Propulsion Burnouts . | . . . . . . . . . . Robots Hopped 58 | . 5 6 . . 6 24 . 13 4 Cave-ins Triggered . | . . . . . . . . . . Exploration Rate (%) 58 | 5 97 77 94 99 51 67 55 27 12 Regions Visited 9 Branch Regions 3 Pre-discovered Areas . | . . . . . . . . . . Known Exits Taken 7 | . 1 1 1 1 1 1 . 1 . Unknown Exits Taken 1 | 1 . . . . . . . . . Scrap Searched 4 | . . 3 . 1 . . . . . Spaces Dug 25 | . . . . . . 7 4 10 4 Terrain Destroyed 174 | 3 6 . . . 4 7 131 19 4 Melee 25 | . . . . . . 7 4 10 4 Projectile 3 | . . . . . 2 . . 1 . AOE 146 | 3 6 . . . 2 . 127 8 . Actions | -11 -10 -10 -10 -9 -8 -7 -7 -6 -5 --------- Run | Scr Mat Min Exi Min Mat Fac Gar Fac Fac Total 10795 | 118 959 447 1195 727 848 3272 1108 1475 646 Wait 1943 | 51 128 84 589 137 82 380 45 354 93 Move 8018 | 56 681 347 606 576 641 2723 838 1031 519 Hop 54 | . 5 6 . . 6 23 . 10 4 Pick Up 38 | 2 10 . . . 3 10 6 5 2 Fast Attach 41 | 5 6 1 . 1 10 11 1 1 5 Attach 11 | . 1 . . . . 4 2 3 1 Detach 3 | . . . . . . 2 1 . . Swap 33 | . 5 . . . 2 6 13 5 2 Drop 52 | . 14 1 . . 8 15 8 4 2 Fire 219 | 4 86 4 . 10 65 24 9 4 13 Melee 149 | . . . . . . 46 70 28 5 Ram . | . . . . . . . . . . Kick . | . . . . . . . . . . Crush . | . . . . . . . . . . Escape Stasis 81 | . . . . . . 8 73 . . Rewire . | . . . . . . . . . . Trap 14 | . . . . . . . 14 . . Miscellaneous 139 | . 23 4 . 3 31 20 28 30 . Route ------- -11/Scrapyard -10/Materials (discovered 5 exits: *Mat x3 / *Min x2) -10/Mines (discovered 2 exits: *Mat / *Exi) -10/Exiles (discovered 2 exits: *Min x2) -9/Mines (discovered 2 exits: *Mat x2) -8/Materials (discovered 2 exits: *Fac x2) -7/Factory (discovered 7 exits: *Fac x2 / Sto x2 / *Low x2 / Gar) -7/Garrison -6/Factory -5/Factory History --------- Turn | Location | Event 1 | -11/Scrapyard | Upgraded with Utility slot (x1) 16 | -11/Scrapyard | Discovered new exit (range 15) 98 | -11/Scrapyard | Entered Materials 231 | -10/Materials | Discovered new exit (range 16) 376 | -10/Materials | Discovered new exit (range 15) 397 | -10/Materials | Reached level 2 409 | -10/Materials | Upgraded with Propulsion slot (x1) 409 | -10/Materials | Upgraded with Utility slot (x1) 455 | -10/Materials | Identified exit to Mines 455 | -10/Materials | Discovered new exit (range 13) 523 | -10/Materials | Identified exit to Materials 610 | -10/Materials | Discovered exit to Materials (range 16) 703 | -10/Materials | Repaired Flight Unit 724 | -10/Materials | Build established: Scavenger-Scout 730 | -10/Materials | Repaired Flight Unit 736 | -10/Materials | Entered Mines 740 | -10/Mines | Met a Derelict shopkeep closing up shop 775 | -10/Mines | Assisted by bots powering up and referring to "LRC-V3" 844 | -10/Mines | Discovered exit to Materials (range 8) 852 | -10/Mines | Discovered new exit (range 9) 854 | -10/Mines | Received a Mining Laser from a helpful Derelict 906 | -10/Mines | Deemed a non-threat by the Exiles lab entrance 908 | -10/Mines | Identified exit to Exiles 967 | -10/Mines | Entered Exiles 967 | -10/Exiles | Found Exiles lab abandoned 967 | -10/Exiles | Accompanied by 1 ally 972 | -10/Exiles | Discovered new exit (range 15) 977 | -10/Exiles | Identified exit to Mines 1583 | -10/Exiles | Discovered exit to Mines (range 11) 1781 | -10/Exiles | Entered Mines 1783 | -9/Mines | Reached level 3 1783 | -9/Mines | Upgraded with Utility slot (x1) 1891 | -9/Mines | Learned location of 1 exit from Materials 1904 | -9/Mines | Assisted by bots powering up and referring to "LRC-V3" 1919 | -9/Mines | Learned 2 Materials zone layouts 1963 | -9/Mines | Discovered new exit (range 9) 1966 | -9/Mines | Identified exit to Materials 2040 | -9/Mines | Discovered exit to Materials (range 5) 2156 | -9/Mines | Entered Materials 2156 | -8/Materials | Accompanied by 5 allies 2157 | -8/Materials | Identified exit to Factory 2158 | -8/Materials | Reached level 4 2158 | -8/Materials | Upgraded with Weapon slot (x1) 2161 | -8/Materials | Led the pair of lost Derelicts to an unsafe place 2376 | -8/Materials | Reached level 5 2379 | -8/Materials | Upgraded with Utility slot (x1) 2517 | -8/Materials | Reached level 6 2593 | -8/Materials | Reached level 7 2596 | -8/Materials | Upgraded with Power slot (x1) 2596 | -8/Materials | Upgraded with Propulsion slot (x1) 2596 | -8/Materials | Upgraded with Utility slot (x1) 2648 | -8/Materials | Discovered exit to Factory (range 12) 2686 | -8/Materials | Entered Factory 2686 | -7/Factory | Accompanied by 2 allies 2687 | -7/Factory | Identified exit to Lower Caves 2688 | -7/Factory | Reached level 8 2779 | -7/Factory | Fabricated Hacking Suite (x1) 2854 | -7/Factory | Fabricated System Shield (x1) 2929 | -7/Factory | Fabricated System Shield (x1) 2981 | -7/Factory | Local fabrication network quarantined 3121 | -7/Factory | Repaired Adv. Heat Sink 3142 | -7/Factory | Build established: Hacker-Scout 3386 | -7/Factory | Reached level 9 3389 | -7/Factory | Upgraded with Utility slot (x1) 3404 | -7/Factory | Identified exit to Storage 3441 | -7/Factory | Central database locked down 3586 | -7/Factory | Discovered new exit (range 16) 3590 | -7/Factory | Identified exit to Factory 3693 | -7/Factory | Reached level 10 3748 | -7/Factory | Repaired Lgt. Nuclear Core 4001 | -7/Factory | Repaired Imp. VTOL Module 4085 | -7/Factory | Discovered exit to Factory (range 4) 4187 | -7/Factory | Identified exit to Garrison 4187 | -7/Factory | Entered Garrison 4189 | -7/Garrison | Installed Relay Interface Framework 4194 | -7/Garrison | Triggered checkpoint 4211 | -7/Garrison | Core integrity fell below 50% 4264 | -7/Garrison | Garrison Relay disabled 4264 | -7/Garrison | Reached level 11 4276 | -7/Garrison | Triggered checkpoint 4328 | -7/Garrison | Triggered checkpoint 4328 | -7/Garrison | Upgraded with Utility slot (x1) 4349 | -7/Garrison | Discovered exit to Factory (range 13) 4424 | -7/Garrison | Garrison Relay disabled 4476 | -7/Garrison | Reached level 12 4484 | -7/Garrison | Triggered checkpoint 4575 | -7/Garrison | Phase Generator disabled 4819 | -7/Garrison | Entered Factory 4820 | -6/Factory | Core integrity fell below 50% 4821 | -6/Factory | Reached level 13 4880 | -6/Factory | Core integrity fell below 20% 5020 | -6/Factory | Fabricated P-60 Hacker (x2) 5154 | -6/Factory | Fabricated P-60 Hacker (x2) 5185 | -6/Factory | Reached level 14 5244 | -6/Factory | Upgraded with Utility slot (x1) 5301 | -6/Factory | Upgraded with Weapon slot (x1) 5402 | -6/Factory | Hacker 5a assimilated hostile H-66 Slayer 5412 | -6/Factory | Reached level 15 5412 | -6/Factory | Upgraded with Utility slot (x1) 5519 | -6/Factory | First assault squad dispatched 5599 | -6/Factory | Discovered new exit (range 18) 5613 | -6/Factory | Identified exit to Factory 5613 | -6/Factory | Entered another Factory area 5614 | -5/Factory | Core integrity fell below 50% 5615 | -5/Factory | Reached level 16 5704 | -5/Factory | Build established: Wizard-Scout 5808 | -5/Factory | Core integrity fell below 20% 5834 | -5/Factory | Upgraded with Weapon slot (x1) 5915 | -5/Factory | Destroyed by G-50 Soldier with Heavy Laser Last Messages --------------- The fourth terrestrial planet orbiting the inner edge of Tau Ceti's habitable zone. Project [Seraph] was deployed here in 2211 in response to the [Sigix] threat. 05850_ ALERT: Suspicious activity at Terminal F003. Dispatching Investigation squad. 05863_ ALERT: Rogue bot located, Programmers report to Factory Zone 9Z. 05884_ Slug penetrates Wall. 05885_ H-66 Slayer destroyed. 05885_ Slug penetrates Wall. 05887_ K-01 Serf collects debris. 05893_ P-70 Sage resets K-01 Serf, system corruption cleaned. 05897_ Jacked S-27 Virus... >>formatsys_high Rerouting network defenses. Erasing system data. Installing primary routines, ETC: 6. [Achievement: Assimilation Complete] 05900_ P-70 Sage resets K-01 Serf, system corruption cleaned. 05901_ K-01 Serf latches onto Virus 6a. 05901_ K-01 Serf pushes Virus 6a. Map ----- +----------------------------------------------------+ | ?????????????????????????# ""?????? ???????????? | | ?????????????????????????# ""????? #??????????? | | ?????????????????????????# """""" #??????????? | | ?????????????????????????# """""" #??????????? | | ?????????????????????????# """""" #??????????? | | ?????????????????????????# """""" #??????????? | | ?????????????????????????# """""" #??????????? | | ??????????????????########^ """""" #??????????? | | ??????????????????# ^ #??????????? | | ??????????????????# ""T"" #??????????? | | ??????????????????# """"" +???!??????? | | ??????????????????# #??????????? | | ??????????????????# m g u #??????????? | | ??????????????????#^^^^ ####g#### #??????????? | | ??????????????????# ^^ ####/#### #??????????? | | ############??????# # g # u #??????????? | | ! # #??????# k # # ############ | | = # #??????# # """"# # = | | # #??????# = # """"# # ]]] | | # #??????#[% # """"# # ]] " " " | | # #??????#[![ # """"# # ]] " " " | | # ########R%* # """"# # " " " | | # # u[/% # """"# k # " " " | | # # % # + + " " " | | # # k # """"# # " " " | | # + #@ """"# # " " " | | # # ; """"# # " " " | | # # k ######## """"# p # " " " | | ############ #??????# """"# # | | # ## u #??????# """"# ############ | | # """ ##t #??????# # #??????????? | | # """ ## #??????# # #??????????? | | # """ ## ################ #??????????? | | # ## # #?# p #??????????? | | # """ ## # #?# #??????????? | | # """ ]## u # """ """ #?# #??????????? | | # """ ## # ] """ """ #?# #??????????? | | # ## # """ """ #?#u #??????????? | | + """ =## # #?# #??????????? | | # """ ## + """ """ #?# #??????????? | | # """ ## # """ """ #?# #??????????? | | # ## # ! """ """ #?# #??????????? | | ###+##### # #?# #??????????? | | # #?# #??????????? | | # [ #?# #??????????? | | ####+#########?# #??????????? | | #??# #?????????# #??????????? | | #??# #?????????# #??????????? | | #####+######+#######+######????# #??????????? | | # # [ ## ! ??# #??????????? | +----------------------------------------------------+ Best States ------------- Heat Dissipation 50 Energy Generation 27 Energy Capacity 270 Matter Stores 300 Matter Capacity 300 Sight Range 18 Robot Scan Range 36 Terrain Scan Range 16 Terrain Scan Density 210 Additional Mass Support 6 Evasion (%) 64 Offensive Hacking 32 Defensive Hacking 40 Item Schematics ----------------- Imp. Shield Generator | -8/Materials | Scanalyzed Imp. Grenade Launcher | -8/Materials | Scanalyzed Scythe | -8/Materials | Scanalyzed Hacking Suite | -8/Materials | Hacked System Shield | -8/Materials | Hacked Imp. Flight Unit | -8/Materials | Hacked Imp. Coolant Injector | -7/Factory | Hacked Imp. EM Pulse Cannon | -7/Factory | Hacked Tesla Rifle | -7/Factory | Hacked Adv. Heat Sink | -7/Factory | Scanalyzed Coil Gun | -7/Factory | Hacked Imp. Medium Treads | -7/Factory | Hacked Proton Cannon | -7/Factory | Hacked System Backup Module | -6/Factory | Scanalyzed Robot Schematics ------------------ T-07 Excavator | -7/Factory | Hacked P-60 Hacker | -7/Factory | Hacked S-27 Virus | -5/Factory | Hacked Fabricated ------------ Hacking Suite | x1 | -7/Factory System Shield | x1 | -7/Factory System Shield | x1 | -7/Factory P-60 Hacker | x2 | -6/Factory P-60 Hacker | x2 | -6/Factory Alien Tech Used ----------------- None Achievements -------------- Assimilation Complete Cya! Hehehe Short-term Sacrifices Challenges ------------ None RPGLIKE | -11 -10 -10 -10 -9 -8 -7 -7 -6 -5 --------- Run | Scr Mat Min Exi Min Mat Fac Gar Fac Fac Levels Raised 15 | . 1 . . 1 4 3 2 3 1 XP Earned 26202 | 3000 2155 600 200 850 5903 4130 3691 3773 1900 XP Spent 24765 | 1950 2515 . . 1525 6005 3000 2300 6300 1170 Upgrades 39 | 5 12 . . 3 11 2 1 3 2 Power Slot 1 | . . . . . 1 . . . . Propulsion Slot 2 | . 1 . . . 1 . . . . Utility Slot 9 | 1 1 . . 1 2 1 1 2 . Weapon Slot 3 | . . . . . 1 . . 1 1 Core Integrity 3 | . . . . . 3 . . . . Heat Dissipation 2 | . . . . . 1 . . . 1 Energy Storage 1 | . . . . . 1 . . . . Mass Support 2 | 2 . . . . . . . . . Inventory Capacity 4 | 2 . . . . 1 1 . . . Sight Range 2 | . 2 . . . . . . . . Sensor Range 8 | . 6 . . 2 . . . . . Terrain Scan Density 2 | . 2 . . . . . . . . Protomatter Created 862 | . 185 27 . 63 193 91 218 85 . Integrity Restored 2828 | . 471 81 . 63 500 453 621 639 . Core 2699 | . 471 81 . 23 411 453 621 639 . Parts 129 | . . . . 40 89 . . . . Protomatter Decayed 277 | . . . . 41 187 29 16 4 . Game ------ Seed TitaniumOmegaMachine Manual? 0 Play Time 02:50:36 Cumulative 25.2 hours Start 2020.01.16 @ 16:00:15 End 2020.01.16 @ 19:33:02 Sessions 1 Manual Loads 0 Difficulty Rogue Special Mode Winter2019/RPGLIKE Game No. 13 Rogue 13 Adventurer 0 Explorer 0 Win Type - Total 0 Types 0/0/0/0/0/0/0 Lore% 42 Gallery% 21 Achievement% 33 Wizard Run 0 Options --------- ASCII 0 Keyboard 0 Movement Numpad Keybinds 0 Fullscreen 1 Font 14/SmallcapsGlow Map View 84x54 Tactical HUD 1 Map Filters NONE Filters NONE Steam 1 RUN: b569b469-e8a1-4532-933e-1387eb5f13e6